[Event "*** Titled Tuesday Blitz"]
[Site "Chess.com"]
[Date "2018.10.02"]
[Round "8"]
[White "ajkom197"]
[Black "AliKa2810"]
[Result "0-1"]
[WhiteElo "2381"]
[BlackElo "2488"]
[TimeControl "180+2"]
[EndTime "14:46:23 PDT"]
[Termination "AliKa2810 won on time"]

1. c4 {[%clk 0:03:01.9]} 1... e6 {[%clk 0:02:57.3]} 2. g3 {[%clk 0:02:59.9]}
2... d5 {[%clk 0:02:58.6]} 3. cxd5 {[%clk 0:02:46.7]} 3... exd5 {[%clk
0:02:58.1]} 4. Bg2 {[%clk 0:02:46.7]} 4... Nf6 {[%clk 0:02:59.7]} 5. Nf3 {[%clk
0:02:44.2]} 5... Bd6 {[%clk 0:02:58.9]} 6. d4 {[%clk 0:02:43.5]} 6... O-O {[%clk
0:03:00.2]} 7. O-O {[%clk 0:02:43.8]} 7... c6 {[%clk 0:02:58.6]} 8. Nc3 {[%clk
0:02:43]} 8... Re8 {[%clk 0:02:57.5]} 9. a3 {[%clk 0:02:42.4]} 9... Bf5 {[%clk
0:02:51.6]} 10. Bf4 {[%clk 0:02:40.8]} 10... Bxf4 {[%clk 0:02:48.8]} 11. gxf4
{[%clk 0:02:41.3]} 11... Ne4 {[%clk 0:02:49.8]} 12. e3 {[%clk 0:02:37.5]} 12...
Nd7 {[%clk 0:02:36.6]} 13. Ne5 {[%clk 0:02:36.5]} 13... Ndf6 {[%clk 0:02:26.4]}
14. Rc1 {[%clk 0:02:16.8]} 14... Nxc3 {[%clk 0:02:26]} 15. bxc3 {[%clk
0:02:15.7]} 15... Be4 {[%clk 0:02:26.3]} 16. Bh3 {[%clk 0:02:10.3]} 16... Qd6
{[%clk 0:02:22.3]} 17. Qb3 {[%clk 0:02:04.6]} 17... b5 {[%clk 0:02:21.4]} 18.
Qb4 {[%clk 0:02:04.6]} 18... Rad8 {[%clk 0:02:11.2]} 19. a4 {[%clk 0:02:01.2]}
19... Qxb4 {[%clk 0:01:57.2]} 20. cxb4 {[%clk 0:02:01.6]} 20... bxa4 {[%clk
0:01:58.8]} 21. Nxc6 {[%clk 0:01:56.5]} 21... Rd6 {[%clk 0:01:54.2]} 22. Nxa7
{[%clk 0:01:48.5]} 22... Bd3 {[%clk 0:01:44.6]} 23. Rfd1 {[%clk 0:01:47.8]}
23... Bc4 {[%clk 0:01:45.5]} 24. Bf1 {[%clk 0:01:38.3]} 24... Bb3 {[%clk
0:01:08.4]} 25. Rd3 {[%clk 0:01:24]} 25... Ne4 {[%clk 0:01:08]} 26. Nb5 {[%clk
0:01:19.2]} 26... Rg6+ {[%clk 0:01:05]} 27. Bg2 {[%clk 0:01:15.4]} 27... Bc4
{[%clk 0:01:03.7]} 28. Rxc4 {[%clk 0:00:48.2]} 28... dxc4 {[%clk 0:01:04.3]} 29.
Ra3 {[%clk 0:00:48.6]} 29... Rb8 {[%clk 0:00:25.6]} 30. Rxa4 {[%clk 0:00:43.2]}
30... f5 {[%clk 0:00:26.8]} 31. f3 {[%clk 0:00:30.7]} 31... Rxb5 {[%clk
0:00:21.6]} 32. fxe4 {[%clk 0:00:31.4]} 32... fxe4 {[%clk 0:00:22.6]} 33. Kf2
{[%clk 0:00:32.5]} 33... Re6 {[%clk 0:00:19.8]} 34. Bf1 {[%clk 0:00:29]} 34...
Rc6 {[%clk 0:00:20.7]} 35. Ke1 {[%clk 0:00:23.5]} 35... Kf8 {[%clk 0:00:19.8]}
36. Kd2 {[%clk 0:00:24.3]} 36... c3+ {[%clk 0:00:20.5]} 37. Kc2 {[%clk
0:00:25.4]} 37... Rh5 {[%clk 0:00:21.5]} 38. Ra8+ {[%clk 0:00:16.1]} 38... Ke7
{[%clk 0:00:21]} 39. b5 {[%clk 0:00:16.9]} 39... Rxh2+ {[%clk 0:00:20.8]} 40.
Kc1 {[%clk 0:00:18.5]} 40... Rg6 {[%clk 0:00:20.2]} 41. Ra7+ {[%clk 0:00:16.2]}
41... Kd8 {[%clk 0:00:19.7]} 42. Ra8+ {[%clk 0:00:04.6]} 42... Kc7 {[%clk
0:00:20.1]} 43. Ra7+ {[%clk 0:00:06.5]} 43... Kb8 {[%clk 0:00:21]} 0-1

[Event "*** Titled Tuesday Blitz"]
[Site "Chess.com"]
[Date "2018.10.02"]
[Round "8"]
[White "51616516516"]
[Black "PowerThinking2650"]
[Result "1-0"]
[WhiteElo "2302"]
[BlackElo "2324"]
[TimeControl "180+2"]
[EndTime "14:46:49 PDT"]
[Termination "51616516516 won by checkmate"]

1. d4 {[%clk 0:03:00.9]} 1... Nf6 {[%clk 0:03:00.4]} 2. c4 {[%clk 0:03:01.5]}
2... g6 {[%clk 0:03:01]} 3. Nf3 {[%clk 0:03:02.5]} 3... Bg7 {[%clk 0:03:01.9]}
4. g3 {[%clk 0:03:03.7]} 4... O-O {[%clk 0:03:02.6]} 5. Bg2 {[%clk 0:03:04.5]}
5... d6 {[%clk 0:03:04.3]} 6. O-O {[%clk 0:03:05.9]} 6... Nbd7 {[%clk
0:03:05.9]} 7. Nc3 {[%clk 0:03:07.1]} 7... e5 {[%clk 0:03:07.4]} 8. h3 {[%clk
0:03:08.5]} 8... exd4 {[%clk 0:03:08]} 9. Nxd4 {[%clk 0:03:09.4]} 9... Re8
{[%clk 0:03:09.6]} 10. e4 {[%clk 0:03:10.3]} 10... Nc5 {[%clk 0:03:07.6]} 11. f3
{[%clk 0:02:58.2]} 11... Nfd7 {[%clk 0:02:30.4]} 12. Be3 {[%clk 0:02:57.7]}
12... h5 {[%clk 0:02:27.6]} 13. Qd2 {[%clk 0:02:50.8]} 13... h4 {[%clk
0:02:24.5]} 14. g4 {[%clk 0:02:50.6]} 14... Ne5 {[%clk 0:01:54.7]} 15. b3 {[%clk
0:02:47.1]} 15... a5 {[%clk 0:01:54.8]} 16. Rad1 {[%clk 0:02:29.1]} 16... a4
{[%clk 0:01:52.2]} 17. f4 {[%clk 0:02:23.1]} 17... Ned3 {[%clk 0:01:45.1]} 18.
Nxa4 {[%clk 0:02:09.3]} 18... Nxa4 {[%clk 0:01:07.1]} 19. bxa4 {[%clk
0:02:08.4]} 19... Nc5 {[%clk 0:01:05.5]} 20. Qc2 {[%clk 0:01:36.9]} 20... Qe7
{[%clk 0:01:00.2]} 21. Rfe1 {[%clk 0:01:18.9]} 21... Bd7 {[%clk 0:00:51.1]} 22.
Nb5 {[%clk 0:01:17]} 22... Bc6 {[%clk 0:00:51.6]} 23. Bxc5 {[%clk 0:01:15.8]}
23... dxc5 {[%clk 0:00:53.5]} 24. e5 {[%clk 0:01:13.9]} 24... g5 {[%clk
0:00:44.7]} 25. fxg5 {[%clk 0:00:36.4]} 25... Bxe5 {[%clk 0:00:42]} 26. g6
{[%clk 0:00:34.9]} 26... Bxb5 {[%clk 0:00:20.8]} 27. gxf7+ {[%clk 0:00:30.8]}
27... Qxf7 {[%clk 0:00:16.8]} 28. Bd5 {[%clk 0:00:27.6]} 28... Re6 {[%clk
0:00:16]} 29. Bxe6 {[%clk 0:00:19.8]} 29... Qxe6 {[%clk 0:00:16.1]} 30. axb5
{[%clk 0:00:17.3]} 30... Rf8 {[%clk 0:00:15.7]} 31. Rxe5 {[%clk 0:00:04.2]}
31... Qxe5 {[%clk 0:00:15.6]} 32. Qg6+ {[%clk 0:00:05.2]} 32... Qg7 {[%clk
0:00:15.5]} 33. Qxg7+ {[%clk 0:00:05.9]} 33... Kxg7 {[%clk 0:00:17.4]} 34. Rd7+
{[%clk 0:00:06.6]} 34... Rf7 {[%clk 0:00:17.2]} 35. Rxf7+ {[%clk 0:00:07.4]}
35... Kxf7 {[%clk 0:00:18.4]} 36. a4 {[%clk 0:00:04.7]} 36... b6 {[%clk
0:00:19.3]} 37. Kf2 {[%clk 0:00:05.2]} 37... Kf6 {[%clk 0:00:18.8]} 38. Kf3
{[%clk 0:00:06]} 38... Kg5 {[%clk 0:00:19.1]} 39. Ke4 {[%clk 0:00:06.5]} 39...
Kf6 {[%clk 0:00:19.8]} 40. Kf4 {[%clk 0:00:07.6]} 40... Kg6 {[%clk 0:00:20.1]}
41. g5 {[%clk 0:00:08.8]} 41... Kh5 {[%clk 0:00:20.6]} 42. Kf5 {[%clk
0:00:07.2]} 42... c6 {[%clk 0:00:21.8]} 43. bxc6 {[%clk 0:00:05.6]} 43... b5
{[%clk 0:00:22.5]} 44. c7 {[%clk 0:00:06.4]} 44... bxa4 {[%clk 0:00:18.4]} 45.
c8=Q {[%clk 0:00:07.2]} 45... a3 {[%clk 0:00:19.3]} 46. Qh8# {[%clk 0:00:06.4]}
1-0

[Event "*** Titled Tuesday Blitz"]
[Site "Chess.com"]
[Date "2018.10.02"]
[Round "8"]
[White "Bryakin_Mikhail"]
[Black "ENEASZ"]
[Result "1-0"]
[WhiteElo "2681"]
[BlackElo "2586"]
[TimeControl "180+2"]
[EndTime "14:47:34 PDT"]
[Termination "Bryakin_Mikhail won on time"]

1. d4 {[%clk 0:02:55.4]} 1... d6 {[%clk 0:03:01.9]} 2. Nf3 {[%clk 0:02:52.7]}
2... Nf6 {[%clk 0:03:01.4]} 3. c4 {[%clk 0:02:53.4]} 3... g6 {[%clk 0:03:01.7]}
4. Nc3 {[%clk 0:02:54.5]} 4... Bg7 {[%clk 0:03:03.1]} 5. Bf4 {[%clk 0:02:54.7]}
5... O-O {[%clk 0:03:03.9]} 6. e3 {[%clk 0:02:56.3]} 6... c5 {[%clk 0:03:04.9]}
7. Be2 {[%clk 0:02:57]} 7... b6 {[%clk 0:02:59]} 8. O-O {[%clk 0:02:57.1]} 8...
Bb7 {[%clk 0:02:59.7]} 9. h3 {[%clk 0:02:58.4]} 9... Nbd7 {[%clk 0:02:59.6]} 10.
d5 {[%clk 0:02:58.6]} 10... a6 {[%clk 0:02:54.9]} 11. e4 {[%clk 0:02:57.4]}
11... b5 {[%clk 0:02:51.2]} 12. cxb5 {[%clk 0:02:57.7]} 12... axb5 {[%clk
0:02:53.1]} 13. Bxb5 {[%clk 0:02:58.8]} 13... Qa5 {[%clk 0:02:47.9]} 14. Re1
{[%clk 0:02:51]} 14... Ba6 {[%clk 0:02:44.5]} 15. a4 {[%clk 0:02:43.3]} 15...
Qb4 {[%clk 0:02:39.9]} 16. Qc2 {[%clk 0:02:32.2]} 16... Bxb5 {[%clk 0:02:05.7]}
17. axb5 {[%clk 0:02:09.6]} 17... Nb6 {[%clk 0:01:50.7]} 18. Nd2 {[%clk
0:02:03.1]} 18... Nfd7 {[%clk 0:01:40.7]} 19. Bg5 {[%clk 0:01:51]} 19... Nf6
{[%clk 0:01:38.5]} 20. Ra6 {[%clk 0:01:47.2]} 20... Rxa6 {[%clk 0:01:20.3]} 21.
bxa6 {[%clk 0:01:49.1]} 21... Qa5 {[%clk 0:01:21.8]} 22. Qd3 {[%clk 0:01:34.2]}
22... Ra8 {[%clk 0:00:49]} 23. e5 {[%clk 0:01:34.1]} 23... dxe5 {[%clk
0:00:49.9]} 24. d6 {[%clk 0:01:35.6]} 24... exd6 {[%clk 0:00:47.5]} 25. Qxd6
{[%clk 0:01:13.6]} 25... Nfd7 {[%clk 0:00:47.9]} 26. Nd5 {[%clk 0:00:55]} 26...
Nxd5 {[%clk 0:00:43.2]} 27. Qxd5 {[%clk 0:00:54.1]} 27... Nb6 {[%clk 0:00:44.1]}
28. Qc6 {[%clk 0:00:44.3]} 28... h6 {[%clk 0:00:42.6]} 29. Be3 {[%clk
0:00:36.7]} 29... Qxa6 {[%clk 0:00:41]} 30. Qxc5 {[%clk 0:00:26.6]} 30... Na4
{[%clk 0:00:39.9]} 31. Qc2 {[%clk 0:00:27]} 31... Rc8 {[%clk 0:00:35.4]} 32. Qb1
{[%clk 0:00:27.7]} 32... Qb5 {[%clk 0:00:34.4]} 33. b3 {[%clk 0:00:28.3]} 33...
Nc3 {[%clk 0:00:35.3]} 34. Qa1 {[%clk 0:00:27.5]} 34... e4 {[%clk 0:00:35.9]}
35. Qa7 {[%clk 0:00:28.2]} 35... Qd5 {[%clk 0:00:22.1]} 36. Nc4 {[%clk
0:00:15.8]} 36... Rd8 {[%clk 0:00:16.3]} 37. Qb6 {[%clk 0:00:12.7]} 37... g5
{[%clk 0:00:16]} 38. Kh1 {[%clk 0:00:11]} 38... f5 {[%clk 0:00:16.5]} 39. Bc5
{[%clk 0:00:05.4]} 39... Kh8 {[%clk 0:00:14.5]} 40. Be7 {[%clk 0:00:05.9]} 40...
Re8 {[%clk 0:00:14.5]} 41. Bb4 {[%clk 0:00:07.2]} 41... f4 {[%clk 0:00:14.3]}
42. Qg6 {[%clk 0:00:08.4]} 42... Rd8 {[%clk 0:00:13.5]} 43. Bxc3 {[%clk
0:00:06]} 43... Bxc3 {[%clk 0:00:13.8]} 44. Rxe4 {[%clk 0:00:07.6]} 44... Bg7
{[%clk 0:00:12]} 45. h4 {[%clk 0:00:09]} 45... gxh4 {[%clk 0:00:08.4]} 46. Kh2
{[%clk 0:00:10.5]} 46... Qg5 {[%clk 0:00:08.6]} 47. Re6 {[%clk 0:00:06.2]} 47...
Qxg6 {[%clk 0:00:06.3]} 48. Rxg6 {[%clk 0:00:08.1]} 48... Kh7 {[%clk 0:00:07.7]}
49. Rb6 {[%clk 0:00:08.7]} 49... Rd3 {[%clk 0:00:07.8]} 50. f3 {[%clk
0:00:09.6]} 50... Bd4 {[%clk 0:00:07.1]} 51. Rb7+ {[%clk 0:00:10.9]} 51... Kg6
{[%clk 0:00:07.6]} 52. Rd7 {[%clk 0:00:12.4]} 52... Kf5 {[%clk 0:00:05.4]} 53.
Rd6 {[%clk 0:00:07]} 53... Rd1 {[%clk 0:00:04.8]} 54. b4 {[%clk 0:00:04.3]}
54... Kg5 {[%clk 0:00:02.2]} 55. b5 {[%clk 0:00:05.4]} 1-0

[Event "*** Titled Tuesday Blitz"]
[Site "Chess.com"]
[Date "2018.10.02"]
[Round "8"]
[White "BocharovD"]
[Black "hurricane7791"]
[Result "1/2-1/2"]
[WhiteElo "2787"]
[BlackElo "2704"]
[TimeControl "180+2"]
[EndTime "14:47:42 PDT"]
[Termination "Game drawn by agreement"]

1. c4 {[%clk 0:03:01.9]} 1... c5 {[%clk 0:03:00.2]} 2. Nf3 {[%clk 0:03:01.5]}
2... Nc6 {[%clk 0:02:58.2]} 3. d4 {[%clk 0:03:01.1]} 3... cxd4 {[%clk
0:02:58.6]} 4. Nxd4 {[%clk 0:03:02.5]} 4... Nf6 {[%clk 0:02:59.7]} 5. Nc3 {[%clk
0:03:02.9]} 5... e6 {[%clk 0:03:00.8]} 6. a3 {[%clk 0:02:59.1]} 6... Bc5 {[%clk
0:02:54.9]} 7. Nb3 {[%clk 0:02:57]} 7... Be7 {[%clk 0:02:56]} 8. e4 {[%clk
0:02:58]} 8... O-O {[%clk 0:02:53.9]} 9. Be2 {[%clk 0:02:55.7]} 9... Qc7 {[%clk
0:02:55.1]} 10. O-O {[%clk 0:02:55.7]} 10... b6 {[%clk 0:02:53.3]} 11. Be3
{[%clk 0:02:55.9]} 11... Bb7 {[%clk 0:02:53.2]} 12. Rc1 {[%clk 0:02:55.1]} 12...
Rac8 {[%clk 0:02:54]} 13. f4 {[%clk 0:02:55]} 13... d6 {[%clk 0:02:50.4]} 14.
Bf3 {[%clk 0:02:49.5]} 14... Qb8 {[%clk 0:02:51]} 15. Qe2 {[%clk 0:02:48.9]}
15... Rfe8 {[%clk 0:02:49.9]} 16. Rfd1 {[%clk 0:02:41.2]} 16... Bf8 {[%clk
0:02:50.9]} 17. g4 {[%clk 0:02:30.2]} 17... Nd7 {[%clk 0:02:50.9]} 18. g5 {[%clk
0:02:27.3]} 18... g6 {[%clk 0:02:51.1]} 19. Bg2 {[%clk 0:02:24.6]} 19... Bg7
{[%clk 0:02:47.2]} 20. Nb5 {[%clk 0:02:23.9]} 20... Bf8 {[%clk 0:02:45.5]} 21.
Rd2 {[%clk 0:02:17.3]} 21... Nc5 {[%clk 0:02:45.3]} 22. Nxc5 {[%clk 0:02:10]}
22... bxc5 {[%clk 0:02:45.6]} 23. Rcd1 {[%clk 0:02:10.1]} 23... Rcd8 {[%clk
0:02:46.7]} 24. Qf2 {[%clk 0:02:06.5]} 24... a6 {[%clk 0:02:45.6]} 25. Nc3
{[%clk 0:02:06.6]} 25... Bg7 {[%clk 0:02:44.5]} 26. Ne2 {[%clk 0:02:07.7]} 26...
a5 {[%clk 0:02:39.9]} 27. Nc3 {[%clk 0:01:50.7]} 27... Ba6 {[%clk 0:02:20.6]}
28. e5 {[%clk 0:01:50.4]} 28... Nd4 {[%clk 0:02:20.8]} 29. Ne4 {[%clk
0:01:40.2]} 29... dxe5 {[%clk 0:02:11]} 30. fxe5 {[%clk 0:01:41.1]} 30... Qxe5
{[%clk 0:02:04.4]} 31. Bf4 {[%clk 0:01:36]} 31... Qf5 {[%clk 0:01:57.3]} 32. Nd6
{[%clk 0:01:13.1]} 32... Qg4 {[%clk 0:01:53.9]} 33. h3 {[%clk 0:01:09.2]} 33...
Qh5 {[%clk 0:01:47]} 34. Nxe8 {[%clk 0:01:00]} 34... Rxe8 {[%clk 0:01:48.9]} 35.
Re1 {[%clk 0:01:00.6]} 35... Bxc4 {[%clk 0:01:44.6]} 36. Be5 {[%clk 0:01:01.8]}
36... Qxg5 {[%clk 0:01:41.5]} 37. Bxg7 {[%clk 0:01:01.8]} 37... Kxg7 {[%clk
0:01:43.4]} 38. Rxd4 {[%clk 0:01:02.3]} 38... cxd4 {[%clk 0:01:25.7]} 39. Qxd4+
{[%clk 0:01:03.6]} 39... e5 {[%clk 0:01:23.6]} 40. Qxc4 {[%clk 0:01:04.3]} 40...
f5 {[%clk 0:01:25.5]} 41. b4 {[%clk 0:01:03.9]} 41... axb4 {[%clk 0:01:21.8]}
42. axb4 {[%clk 0:01:05.2]} 42... e4 {[%clk 0:01:23.3]} 43. b5 {[%clk
0:01:05.3]} 43... Rd8 {[%clk 0:01:21.8]} 44. Qc3+ {[%clk 0:00:33.1]} 44... Kh6
{[%clk 0:01:21]} 45. Qe3 {[%clk 0:00:34]} 45... Qxe3+ {[%clk 0:01:21.6]} 46.
Rxe3 {[%clk 0:00:34.9]} 46... Rd1+ {[%clk 0:01:23.5]} 47. Bf1 {[%clk 0:00:36]}
47... Rb1 {[%clk 0:01:25.4]} 48. Rc3 {[%clk 0:00:36.4]} 48... Kg5 {[%clk
0:01:08.5]} 49. Kf2 {[%clk 0:00:33.5]} 49... f4 {[%clk 0:01:05.6]} 50. Be2
{[%clk 0:00:34.3]} 50... Rb2 {[%clk 0:01:06.1]} 51. Ke1 {[%clk 0:00:34.9]} 51...
f3 {[%clk 0:01:06.1]} 52. Bxf3 {[%clk 0:00:31.2]} 52... exf3 {[%clk 0:01:08]}
53. Rxf3 {[%clk 0:00:32.4]} 53... Rxb5 {[%clk 0:01:09.2]} 54. Kf2 {[%clk
0:00:34.1]} 54... Kh4 {[%clk 0:01:09.6]} 55. Kg2 {[%clk 0:00:34.3]} 55... Rb2+
{[%clk 0:01:10.9]} 56. Kg1 {[%clk 0:00:35.5]} 56... Rd2 {[%clk 0:01:05.5]} 57.
Re3 {[%clk 0:00:36.5]} 57... h5 {[%clk 0:01:05.3]} 58. Rf3 {[%clk 0:00:38.1]}
58... g5 {[%clk 0:01:06.6]} 59. Re3 {[%clk 0:00:39.4]} 59... Ra2 {[%clk
0:01:01.9]} 60. Rd3 {[%clk 0:00:40.4]} 60... g4 {[%clk 0:00:59.4]} 61. hxg4
{[%clk 0:00:40.8]} 61... hxg4 {[%clk 0:01:01.3]} 62. Rc3 {[%clk 0:00:40.3]}
62... Ra4 {[%clk 0:00:59.4]} 63. Kg2 {[%clk 0:00:40.6]} 63... Ra2+ {[%clk
0:01:00.3]} 64. Kg1 {[%clk 0:00:41.9]} 64... Rd2 {[%clk 0:01:02.2]} 65. Rb3
{[%clk 0:00:42.6]} 65... Kg5 {[%clk 0:01:03.5]} 66. Rb8 {[%clk 0:00:39]} 66...
Kf4 {[%clk 0:01:03.8]} 67. Rb4+ {[%clk 0:00:38.1]} 67... Kg5 {[%clk 0:00:58.3]}
68. Rb8 {[%clk 0:00:36.8]} 68... Re2 {[%clk 0:00:58.9]} 69. Rb3 {[%clk
0:00:36.7]} 69... Kf4 {[%clk 0:00:59.9]} 70. Rc3 {[%clk 0:00:37.3]} 70... Re4
{[%clk 0:00:52.4]} 71. Rb3 {[%clk 0:00:37.9]} 71... Rc4 {[%clk 0:00:53.2]} 72.
Ra3 {[%clk 0:00:38.7]} 72... g3 {[%clk 0:00:54.6]} 73. Ra8 {[%clk 0:00:38.8]}
73... Rc1+ {[%clk 0:00:52]} 74. Kg2 {[%clk 0:00:39.5]} 74... Rc2+ {[%clk
0:00:53.9]} 75. Kg1 {[%clk 0:00:40.7]} 75... Kf3 {[%clk 0:00:54.6]} 76. Rf8+
{[%clk 0:00:35.2]} 1/2-1/2

[Event "*** Titled Tuesday Blitz"]
[Site "Chess.com"]
[Date "2018.10.02"]
[Round "8"]
[White "Gubajdullin"]
[Black "mishanick"]
[Result "0-1"]
[WhiteElo "2405"]
[BlackElo "2851"]
[TimeControl "180+2"]
[EndTime "14:48:00 PDT"]
[Termination "mishanick won by resignation"]

1. d4 {[%clk 0:03:01.9]} 1... Nf6 {[%clk 0:02:52.5]} 2. Bf4 {[%clk 0:03:02.8]}
2... d5 {[%clk 0:02:52.4]} 3. e3 {[%clk 0:03:03.1]} 3... c5 {[%clk 0:02:41.3]}
4. c3 {[%clk 0:03:03.5]} 4... Nc6 {[%clk 0:02:41.4]} 5. Nd2 {[%clk 0:03:03.5]}
5... cxd4 {[%clk 0:02:42.5]} 6. exd4 {[%clk 0:03:03.4]} 6... Bf5 {[%clk
0:02:43.4]} 7. Qb3 {[%clk 0:02:58.5]} 7... Qc8 {[%clk 0:02:43.2]} 8. Ngf3 {[%clk
0:02:57.5]} 8... e6 {[%clk 0:02:44.7]} 9. Be2 {[%clk 0:02:56.1]} 9... Be7 {[%clk
0:02:43.3]} 10. O-O {[%clk 0:02:56.2]} 10... h6 {[%clk 0:02:44.3]} 11. Rfe1
{[%clk 0:02:51.2]} 11... O-O {[%clk 0:02:43.4]} 12. a4 {[%clk 0:02:52.1]} 12...
Na5 {[%clk 0:02:42.5]} 13. Qa2 {[%clk 0:02:28.2]} 13... Ne4 {[%clk 0:02:27.9]}
14. Nxe4 {[%clk 0:02:26]} 14... Bxe4 {[%clk 0:02:28.5]} 15. Ne5 {[%clk
0:02:25.1]} 15... Nc6 {[%clk 0:02:28.3]} 16. a5 {[%clk 0:02:20]} 16... a6 {[%clk
0:02:23.3]} 17. Qa4 {[%clk 0:02:16.8]} 17... Nxe5 {[%clk 0:02:17.5]} 18. Bxe5
{[%clk 0:02:17.7]} 18... Qe8 {[%clk 0:02:14]} 19. Qb3 {[%clk 0:02:05.2]} 19...
Qd7 {[%clk 0:02:14.4]} 20. Bf1 {[%clk 0:01:55.1]} 20... Rac8 {[%clk 0:02:12]}
21. Qd1 {[%clk 0:01:44]} 21... Bf5 {[%clk 0:02:02.5]} 22. Qf3 {[%clk 0:01:42]}
22... Rfe8 {[%clk 0:01:48.2]} 23. Qg3 {[%clk 0:01:42.5]} 23... f6 {[%clk
0:01:32]} 24. Bf4 {[%clk 0:01:42.6]} 24... Kh7 {[%clk 0:01:33.3]} 25. Bd3 {[%clk
0:01:43]} 25... Bxd3 {[%clk 0:01:28.8]} 26. Qxd3+ {[%clk 0:01:43.2]} 26... g6
{[%clk 0:01:30.2]} 27. Re3 {[%clk 0:01:34.6]} 27... Bf8 {[%clk 0:01:30.4]} 28.
h4 {[%clk 0:01:34.2]} 28... h5 {[%clk 0:01:27.9]} 29. Rg3 {[%clk 0:01:33.3]}
29... Qf7 {[%clk 0:01:28.6]} 30. Re1 {[%clk 0:01:32.3]} 30... Be7 {[%clk
0:01:24.7]} 31. Rge3 {[%clk 0:01:29.9]} 31... Bd8 {[%clk 0:01:24.3]} 32. Qe2
{[%clk 0:01:23.7]} 32... Rc6 {[%clk 0:01:22.5]} 33. b4 {[%clk 0:01:17.2]} 33...
Kg8 {[%clk 0:01:17.8]} 34. Bg3 {[%clk 0:01:16.9]} 34... Qd7 {[%clk 0:01:16]} 35.
Qd3 {[%clk 0:01:16.3]} 35... Kf7 {[%clk 0:01:15]} 36. Bf4 {[%clk 0:01:15.9]}
36... Qc8 {[%clk 0:01:07.5]} 37. Rg3 {[%clk 0:01:15.7]} 37... Rg8 {[%clk
0:01:08.2]} 38. Ree3 {[%clk 0:01:16.4]} 38... Be7 {[%clk 0:01:06.7]} 39. Ref3
{[%clk 0:01:17]} 39... Qf8 {[%clk 0:01:04.8]} 40. Qe3 {[%clk 0:01:14.8]} 40...
Ke8 {[%clk 0:01:01.4]} 41. Be5 {[%clk 0:01:14.5]} 41... Qg7 {[%clk 0:00:58.7]}
42. Bf4 {[%clk 0:01:14.4]} 42... Kd7 {[%clk 0:00:59.4]} 43. Qd3 {[%clk
0:01:13.2]} 43... Rc4 {[%clk 0:01:00.2]} 44. Re3 {[%clk 0:01:13.2]} 44... Qf7
{[%clk 0:01:00.7]} 45. Qe2 {[%clk 0:01:13.3]} 45... g5 {[%clk 0:00:57.5]} 46.
hxg5 {[%clk 0:01:12.5]} 46... fxg5 {[%clk 0:00:59.4]} 47. Be5 {[%clk 0:01:12.5]}
47... g4 {[%clk 0:00:59.6]} 48. Rd3 {[%clk 0:01:10.4]} 48... Qf5 {[%clk
0:00:44.2]} 49. Rd1 {[%clk 0:01:09]} 49... Rf8 {[%clk 0:00:39.8]} 50. Rgd3
{[%clk 0:01:09]} 50... h4 {[%clk 0:00:37.3]} 51. f4 {[%clk 0:01:06.6]} 51... Rf7
{[%clk 0:00:35.7]} 52. Rb1 {[%clk 0:00:56.1]} 52... Rxc3 {[%clk 0:00:33.6]} 53.
Rbd1 {[%clk 0:00:50.3]} 53... Rc4 {[%clk 0:00:31.4]} 54. b5 {[%clk 0:00:48.7]}
54... axb5 {[%clk 0:00:31.6]} 55. Qb2 {[%clk 0:00:49.3]} 55... b4 {[%clk
0:00:31]} 56. Qb3 {[%clk 0:00:50.2]} 56... Ke8 {[%clk 0:00:27.5]} 57. Qa4+
{[%clk 0:00:47.9]} 57... Kf8 {[%clk 0:00:28.4]} 58. Qd7 {[%clk 0:00:48.5]} 58...
g3 {[%clk 0:00:21.7]} 59. Qxb7 {[%clk 0:00:46.7]} 59... Kg8 {[%clk 0:00:20.4]}
60. R3d2 {[%clk 0:00:42.2]} 60... Bg5 {[%clk 0:00:16.3]} 61. Rf1 {[%clk
0:00:38.6]} 61... Rxb7 {[%clk 0:00:16.6]} 62. fxg5 {[%clk 0:00:35.2]} 62... Qxg5
{[%clk 0:00:17.4]} 63. Re2 {[%clk 0:00:34.8]} 63... b3 {[%clk 0:00:18.2]} 64.
Bf4 {[%clk 0:00:35.7]} 64... Qg4 {[%clk 0:00:17.9]} 65. Re5 {[%clk 0:00:35.9]}
65... b2 {[%clk 0:00:19.2]} 66. Rg5+ {[%clk 0:00:32.3]} 66... Qxg5 {[%clk
0:00:20.1]} 67. Bxg5 {[%clk 0:00:33.4]} 67... b1=Q {[%clk 0:00:22]} 0-1